bitfinex-derivatives/quotes_ETHF0:USTF0_20240920
["timestamp","ask_amount","ask_price","bid_price","bid_amount"]
[1726842687756,0.39261,2546.9,2546.7,3.2078]
[1726842688050,0.39259,2547.1,2546.7,3.2078]
[1726842688347,1.0062,2547.4,2546.7,3.2078]
[1726842688550,0.39258,2547.1,2547.0,3.2078]
[1726842688852,3.76,2547.8,2547.2,0.39255]
[1726842689045,0.39253,2547.4,2547.3,3.2078]
[1726842689244,0.98125,2547.7,2547.3,3.2078]
[1726842689444,0.39253,2547.4,2547.3,3.2078]
[1726842690152,1.37387,2547.4,2547.3,3.2078]
[1726842690343,1.37387,2547.4,2546.8,4.2326]
[1726842690344,0.3926,2547.0,2546.8,4.2326]
[1726842690653,0.39261,2547.0,2546.8,4.2326]
[1726842690856,0.39258,2547.1,2546.8,4.2326]
[1726842691151,0.39255,2547.3,2547.0,0.39258]
[1726842691336,0.39254,2547.4,2547.1,3.2078]
[1726842691542,0.98126,2547.6,2547.1,3.60037]
[1726842691739,0.39254,2547.4,2547.2,1.47386]
[1726842691940,0.39255,2547.3,2547.2,1.0813]
[1726842692141,0.39254,2547.4,2547.2,1.47386]
[1726842692453,0.39256,2547.2,2547.1,3.2078]
[1726842692752,1.37398,2547.2,2547.1,3.2078]
[1726842692940,0.39261,2546.9,2546.8,1.0248]
[1726842693336,0.3926,2547.0,2546.8,1.0248]
[1726842693848,0.98142,2547.2,2546.8,1.0248]
[1726842694051,0.39261,2546.9,2546.8,1.0248]
[1726842694349,0.3926,2547.0,2546.8,1.0248]
[1726842694548,0.39261,2546.9,2546.8,1.0248]
[1726842694757,0.98145,2547.1,2546.6,3.60045]
[1726842694758,0.39263,2546.8,2546.6,3.60045]
[1726842694943,0.39264,2546.7,2546.6,3.2078]
[1726842695946,0.39268,2546.5,2546.3,3.6005]
[1726842696648,0.98162,2546.7,2546.3,3.2078]
[1726842696839,0.39268,2546.5,2546.3,3.60049]
[1726842697046,4.74151,2547.0,2546.3,3.2078]
[1726842697550,0.98153,2546.9,2546.3,3.2078]
[1726842697750,0.39269,2546.4,2546.3,3.6005]
[1726842698254,0.39269,2546.4,2546.0,1.0727]
[1726842698255,0.39269,2546.4,2546.0,3.2078]
[1726842698458,0.98168,2546.6,2546.0,3.2078]
[1726842698640,0.39264,2546.7,2546.5,0.39267]
[1726842698852,4.74152,2547.0,2546.3,3.2078]
[1726842698853,0.39268,2546.5,2546.3,3.2078]
[1726842699147,3.76,2547.0,2546.6,0.39265]
[1726842699148,4.7415,2547.0,2546.6,0.39265]
[1726842699342,4.7415,2547.0,2546.3,4.18955]
[1726842699343,3.76,2547.0,2546.4,2.1818]
[1726842699545,3.2078,2547.2,2546.7,0.98161]
[1726842699852,0.39262,2546.9,2546.8,0.39262]
[1726842700154,0.39264,2546.7,2546.6,3.2078]
[1726842700550,0.98158,2546.8,2546.5,0.39266]
[1726842700742,0.98152,2547.0,2546.3,3.2078]
[1726842700948,0.39264,2546.8,2546.6,3.60045]
[1726842701161,0.98152,2547.0,2546.6,3.2078]
[1726842701162,0.39264,2546.7,2546.6,3.2078]
[1726842701343,1.37425,2546.7,2546.6,3.2078]
[1726842701553,6.28226,2546.7,2546.6,3.2078]
[1726842702056,0.98169,2546.5,2546.2,3.2078]
[1726842702245,0.39272,2546.2,2546.1,2.1263]
[1726842702642,0.39272,2546.2,2545.8,3.2078]
[1726842702643,0.39274,2546.1,2545.8,3.2078]
[1726842702949,0.39276,2545.9,2545.8,3.2078]
[1726842703344,1.37468,2545.9,2545.8,3.2078]
[1726842703551,4.15276,2545.9,2545.6,0.39281]
[1726842703758,0.39277,2545.9,2545.5,0.39281]
[1726842703950,3.76,2546.2,2545.3,5.3874]
[1726842704159,0.3928,2545.7,2545.4,0.39283]
[1726842704459,0.3928,2545.7,2545.3,5.3874]
[1726842704460,0.98196,2545.8,2545.3,3.2078]
[1726842704756,1.37495,2545.4,2545.3,3.2078]
[1726842704960,1.0894,2545.7,2545.3,0.39285]
[1726842705256,2.07142,2545.7,2545.2,1.0903]
[1726842705461,1.0894,2545.7,2545.2,1.0903]
[1726842705757,0.39285,2545.4,2545.2,1.0903]
[1726842706059,0.39284,2545.5,2545.2,1.0903]
[1726842706264,0.39285,2545.4,2545.2,1.0903]
[1726842706652,0.39287,2545.2,2545.1,3.2078]
[1726842708359,3.76,2545.5,2545.1,3.2078]
[1726842708554,0.39287,2545.2,2545.1,3.2078]
[1726842709153,4.74209,2545.5,2545.1,3.2078]
[1726842709355,0.39287,2545.2,2545.1,3.2078]
[1726842709861,1.0894,2545.7,2545.1,7.1366]
[1726842710057,2.1816,2546.1,2545.3,0.98214]
[1726842710356,1.40101,2546.3,2546.0,0.39274]
[1726842710555,4.7417,2546.5,2545.8,0.39277]
[1726842710556,0.39275,2546.0,2545.8,0.39277]
[1726842710758,4.7417,2546.5,2545.7,3.2078]
[1726842710759,0.9818,2546.2,2545.7,3.2078]
[1726842711060,4.7418,2546.2,2545.5,1.0984]
[1726842711257,0.39279,2545.7,2545.5,1.0984]
[1726842711460,0.39281,2545.6,2545.5,1.0984]
[1726842711663,0.39283,2545.5,2545.4,0.9948]
[1726842712164,0.3928,2545.7,2545.5,0.39282]
[1726842712362,3.76,2545.8,2545.4,0.9948]
[1726842712560,4.74196,2545.8,2545.4,0.9948]
[1726842712750,0.39283,2545.5,2545.4,0.9948]
[1726842712955,0.39284,2545.4,2545.3,3.2078]
[1726842714265,4.32164,2545.4,2545.3,3.2078]
[1726842714465,0.39283,2545.5,2545.3,3.2078]
[1726842714762,2.01831,2545.7,2545.3,3.60064]
[1726842714763,0.39282,2545.6,2545.3,3.60064]
[1726842714950,0.98196,2545.8,2545.3,3.60065]
[1726842715153,0.98199,2545.7,2545.3,3.2078]
[1726842715352,0.39284,2545.4,2545.3,3.2078]
[1726842716756,5.13495,2545.4,2545.3,3.2078]
[1726842717557,5.13495,2545.4,2545.0,0.3929]
[1726842717558,3.76,2545.4,2545.0,0.3929]
[1726842717953,3.07,2545.6,2545.2,3.2078]
[1726842718159,3.07,2545.6,2545.5,0.39283]
[1726842718359,3.07,2545.6,2545.4,0.39283]
[1726842718560,3.07,2545.7,2545.5,3.2078]
[1726842718753,3.4628,2545.7,2545.5,3.2078]
[1726842719160,0.39281,2545.6,2545.5,3.2078]
[1726842719362,3.07,2545.7,2545.5,3.2078]
[1726842719569,3.4628,2545.7,2545.5,3.2078]
[1726842719961,0.39281,2545.7,2545.5,3.2078]
[1726842720165,0.39281,2545.6,2545.5,3.2078]
[1726842720362,3.77,2545.6,2545.2,3.2078]
[1726842721071,0.39278,2545.8,2545.2,3.2078]
[1726842721273,3.77,2545.9,2545.2,4.18999]
[1726842721569,4.18951,2546.5,2545.8,3.2078]
[1726842721771,4.18951,2546.5,2545.9,0.39275]
[1726842721772,0.39272,2546.2,2545.9,0.39275]
[1726842721968,0.39272,2546.2,2546.0,1.0327]
[1726842722365,3.77,2546.6,2546.1,7.135]
[1726842722575,3.77,2546.6,2546.0,1.0327]
[1726842722576,3.77,2546.9,2546.4,3.2078]
[1726842722768,0.39266,2546.7,2546.4,3.60048]
[1726842722966,0.39266,2546.6,2546.4,3.2078]
[1726842723167,0.39266,2546.6,2546.3,0.3927]
[1726842723376,4.75156,2546.9,2546.3,0.3927]
[1726842723673,0.39265,2546.7,2546.4,3.2078]
[1726842723865,0.39264,2546.8,2546.4,3.60048]
[1726842724362,3.77,2546.9,2546.6,0.39264]
[1726842724568,3.77,2547.2,2546.7,3.2078]
[1726842724766,0.39259,2547.1,2546.7,3.60044]
[1726842724970,0.39258,2547.1,2546.7,3.2078]
[1726842725167,0.39259,2547.0,2546.7,3.2078]
[1726842725363,0.3926,2547.0,2546.7,3.2078]
[1726842725558,5.3166,2547.3,2546.7,3.2078]
[1726842725765,0.39259,2547.1,2546.7,3.2078]
[1726842726463,9.0866,2547.3,2546.7,3.2078]
[1726842726663,6.27136,2547.3,2546.7,3.60043]
[1726842726864,6.27136,2547.3,2546.8,1.0958]
[1726842727265,6.9778,2547.6,2546.8,2.1595]
[1726842727569,6.9778,2547.6,2547.0,3.60039]
[1726842727570,0.39252,2547.5,2547.0,3.60039]
[1726842727868,0.39252,2547.5,2547.0,3.2078]
[1726842728169,4.16251,2547.6,2547.0,3.60039]
[1726842728471,0.39252,2547.5,2547.0,3.60039]
[1726842728676,3.77,2547.6,2547.0,3.60039]
[1726842728864,3.77,2547.6,2547.0,3.2078]
[1726842728865,0.39252,2547.5,2547.0,3.2078]
[1726842729060,0.39254,2547.4,2547.0,3.2078]
[1726842729268,3.77,2547.3,2547.0,3.2078]
[1726842729466,0.39258,2547.1,2546.8,2.1595]
[1726842729674,3.77,2547.3,2546.6,3.2078]
[1726842729675,0.98142,2547.2,2546.6,3.2078]
[1726842729971,0.23385185,2547.7,2546.6,3.2078]
[1726842730267,0.39254,2547.4,2546.8,0.39261]
[1726842730471,0.39254,2547.4,2546.6,3.2078]
[1726842730472,0.39253,2547.4,2546.7,0.39263]
[1726842730677,0.39253,2547.4,2546.8,0.39262]
[1726842730976,0.39253,2547.4,2546.9,3.2078]
[1726842731176,3.77,2547.5,2546.9,3.2078]
[1726842731376,0.39255,2547.3,2546.9,3.2078]
[1726842731676,3.77,2547.5,2546.9,3.2078]
[1726842732066,4.16253,2547.5,2546.9,3.2078]
[1726842732268,4.16253,2547.5,2546.9,3.6004]
[1726842732478,0.39255,2547.3,2546.9,3.2078]
[1726842732973,0.39255,2547.3,2546.7,0.39263]
[1726842733364,3.77,2546.8,2546.6,3.2078]
[1726842733678,3.77,2547.2,2546.9,0.39261]
[1726842733867,0.39255,2547.3,2546.9,3.2078]
[1726842734062,0.39256,2547.3,2546.9,3.2078]
[1726842734266,4.16252,2547.5,2547.0,0.39259]
[1726842734466,0.39254,2547.4,2546.9,3.6004]
[1726842734674,3.77,2547.5,2546.9,3.2078]
[1726842734871,0.39256,2547.3,2546.9,3.2078]
[1726842735681,0.98138,2547.3,2546.9,3.2078]
[1726842735975,4.75144,2547.2,2546.7,1.0338]
[1726842736276,4.75144,2547.2,2546.5,7.4058]
[1726842736277,0.39265,2546.7,2546.5,7.4058]
[1726842736480,0.39265,2546.7,2546.5,3.2078]
[1726842736971,3.77,2546.8,2546.3,3.6005]
[1726842737174,3.77,2546.8,2546.3,3.2078]
[1726842737875,0.39263,2546.8,2546.3,3.6005]
[1726842738177,0.39264,2546.8,2546.3,3.6005]
[1726842738677,3.77,2546.7,2546.3,3.2078]
[1726842738889,0.39267,2546.6,2546.3,3.2078]
[1726842739173,3.77,2546.7,2546.3,3.2078]
[1726842739377,4.16265,2546.7,2546.3,3.2078]
[1726842739579,0.39266,2546.6,2546.3,3.2078]
[1726842739769,3.77,2546.7,2546.3,3.2078]
[1726842739965,0.39269,2546.4,2546.0,2.0952]
[1726842740173,0.98165,2546.6,2546.0,2.0952]
[1726842740174,0.3927,2546.3,2546.0,2.0952]
[1726842740376,0.39273,2546.2,2546.0,2.0952]
[1726842740566,0.39271,2546.3,2546.0,2.0952]
[1726842740771,3.77,2546.4,2546.0,2.0952]
[1726842741275,4.16269,2546.4,2546.0,2.0952]
[1726842741781,3.77,2546.4,2546.0,2.48795]
[1726842741967,0.39269,2546.5,2546.0,2.0952]
[1726842742167,1.0791,2546.6,2546.1,0.39273]
[1726842742373,1.0791,2546.6,2546.0,2.0952]
[1726842742374,3.77,2546.7,2546.4,0.39268]
[1726842742571,0.39262,2546.9,2546.5,3.2078]
[1726842742775,4.8702,2547.0,2546.5,3.60046]
[1726842742979,0.39262,2546.9,2546.5,3.60046]
[1726842743176,0.39259,2547.1,2546.5,3.2078]
[1726842743385,0.39257,2547.2,2546.8,3.60041]
[1726842743578,4.75135,2547.4,2546.8,3.60041]
[1726842743579,3.77,2547.4,2546.9,1.0496]
[1726842743883,0.39255,2547.3,2546.9,1.0496]
[1726842744087,0.39253,2547.5,2547.1,3.60037]
[1726842744274,0.39253,2547.5,2547.1,3.2078]
[1726842744475,0.39253,2547.5,2546.9,2.1136]
[1726842744476,4.00288784,2548.1,2547.4,3.60032]
[1726842744673,3.2277,2548.3,2546.9,2.1136]
[1726842744674,2.1561,2548.3,2547.8,3.2078]
[1726842745274,4.16239,2548.4,2547.8,3.60026]
[1726842745479,3.77,2548.4,2547.9,1.0496]
[1726842745878,0.39242,2548.2,2547.9,1.0496]
[1726842746076,3.77,2548.4,2547.9,1.0496]
[1726842746572,0.39239,2548.3,2547.9,1.0496]
[1726842746774,0.98088,2548.6,2547.5,3.2078]
[1726842746775,3.77,2548.1,2547.5,3.2078]
[1726842746979,4.16243,2548.1,2547.5,3.2078]
[1726842747278,3.77,2547.8,2547.5,3.2078]
[1726842747477,3.77,2548.1,2547.5,3.2078]
[1726842747690,3.77,2548.1,2547.5,3.60032]
[1726842747691,4.16243,2548.1,2547.5,3.60032]
[1726842747873,4.884,2548.4,2547.9,3.2078]
[1726842748073,4.884,2548.4,2547.8,3.2078]
[1726842748290,0.39242,2548.2,2547.8,3.2078]
[1726842748479,4.884,2548.4,2547.8,3.2078]
[1726842748694,0.39242,2548.2,2547.8,3.2078]
[1726842749581,0.39242,2548.2,2547.6,0.3925]
[1726842750079,3.77,2548.4,2547.8,3.2078]
[1726842750285,7.37014,2548.7,2548.2,0.39241]
[1726842750480,7.37014,2548.7,2548.1,3.60021]
[1726842750794,6.9778,2548.7,2548.2,1.0459]
[1726842750992,0.39239,2548.3,2548.2,1.0459]
[1726842751183,3.77,2548.7,2548.2,1.0459]
[1726842751384,0.39237,2548.5,2548.2,1.0459]
[1726842751579,3.77,2548.7,2548.2,1.0459]
[1726842751881,0.39237,2548.5,2548.2,1.0459]
[1726842752076,3.77,2548.7,2548.2,1.0459]
[1726842752290,4.16238,2548.4,2548.2,1.0459]
[1726842752491,4.16238,2548.4,2548.1,3.2078]
[1726842752989,3.77,2548.4,2547.7,1.1068]
[1726842753191,0.39242,2548.2,2547.7,1.1068]
[1726842753389,0.3924,2548.3,2547.8,0.39247]
[1726842753687,3.77,2548.4,2547.9,3.2078]
[1726842753688,4.16239,2548.4,2547.9,3.2078]
[1726842753888,0.3924,2548.3,2547.9,3.2078]
[1726842754392,0.39241,2548.2,2547.9,3.2078]
[1726842755100,3.77,2548.4,2547.8,0.39247]
[1726842755296,0.3924,2548.3,2547.9,0.39245]
[1726842755495,3.77,2548.4,2547.7,1.1068]
[1726842755705,3.77,2548.4,2547.9,3.2078]
[1726842755706,0.39243,2548.1,2547.9,3.2078]
[1726842756001,0.39244,2548.0,2547.9,3.2078]
[1726842756303,0.39244,2548.0,2547.7,1.1068]
[1726842756904,0.39245,2548.0,2547.7,1.1068]
[1726842758201,0.39247,2547.9,2547.7,1.1068]
[1726842758501,3.77,2548.1,2547.6,3.6003]
[1726842758706,0.39246,2547.9,2547.6,3.6003]
[1726842758902,0.39247,2547.8,2547.6,3.2078]
[1726842759103,0.39246,2547.9,2547.6,3.2078]
[1726842759293,3.77,2547.8,2547.5,1.0714]
[1726842759498,3.77,2547.8,2547.3,4.2201]
[1726842759499,0.39253,2547.5,2547.3,4.2201]
[1726842759797,0.39252,2547.5,2547.3,3.2078]
[1726842759995,3.77,2547.8,2547.1,1.0714]
[1726842760202,3.77,2547.8,2546.9,3.2078]
[1726842760203,0.98138,2547.3,2546.9,3.2078]
[1726842760393,0.39259,2547.0,2546.9,3.2078]
[1726842760804,4.90789,2547.0,2546.6,3.2078]
[1726842761002,3.77,2547.1,2546.5,1.0714]
[1726842761306,4.16259,2547.1,2546.6,3.60044]
[1726842761513,0.39259,2547.0,2546.6,3.2078]
[1726842761699,4.16259,2547.1,2546.6,3.2078]
[1726842761897,3.77,2547.1,2546.6,3.2078]
[1726842762095,0.3926,2547.0,2546.6,3.2078]
[1726842762305,3.77,2547.1,2546.6,3.60044]
[1726842762612,1.42426,2547.2,2546.6,3.2078]
[1726842762907,1.0317,2547.2,2546.7,0.39263]
[1726842763408,0.39259,2547.1,2546.7,0.39263]
[1726842764092,0.39259,2547.1,2546.6,3.2078]
[1726842764093,1.0317,2547.2,2546.6,3.2078]
[1726842764294,1.103,2547.3,2546.6,3.2078]
[1726842764497,0.39254,2547.4,2546.9,3.2078]
[1726842764696,0.39253,2547.4,2547.0,1.1128]
[1726842764909,0.39253,2547.5,2547.1,1.111]
[1726842765103,1.0166,2547.6,2547.1,1.111]
[1726842765402,3.77,2547.7,2547.3,0.39254]
[1726842765613,3.77,2547.7,2547.2,3.2078]
[1726842765614,0.39253,2547.5,2547.2,3.2078]
[1726842765803,0.39253,2547.5,2547.2,0.39256]
[1726842765999,0.39254,2547.4,2547.2,3.2078]
[1726842766414,0.39254,2547.4,2547.1,1.50357]
[1726842766708,2.1207,2547.3,2546.9,3.2078]
[1726842766908,4.75136,2547.4,2546.9,3.2078]
[1726842766909,3.77,2547.4,2546.9,3.2078]
[1726842767207,0.39254,2547.4,2547.0,1.50359]
[1726842767411,0.39256,2547.3,2547.0,1.111]
[1726842767804,3.77,2547.4,2546.9,3.2078]
[1726842768216,0.98149,2547.0,2546.6,3.2078]
[1726842768510,0.39264,2546.7,2546.6,3.2078]
[1726842768704,0.39263,2546.8,2546.6,3.2078]
[1726842769008,0.39261,2546.9,2546.6,3.2078]
[1726842769310,1.439,2547.0,2546.6,3.60046]
[1726842769709,1.43901,2547.0,2546.6,3.60045]
[1726842769905,0.39261,2546.9,2546.6,3.2078]
[1726842770409,0.39261,2546.9,2546.6,3.60045]
[1726842770609,0.39264,2546.7,2546.6,3.2078]
[1726842771114,0.98153,2546.9,2546.6,3.2078]
[1726842771115,0.39262,2546.9,2546.6,3.2078]
[1726842771310,1.439,2547.0,2546.6,3.2078]
[1726842771509,1.439,2547.0,2546.7,0.39264]
[1726842771510,1.0464,2547.0,2546.7,0.39264]
[1726842771817,1.43901,2547.0,2546.6,3.60046]
[1726842772112,4.16258,2547.1,2546.6,3.2078]
[1726842772315,1.1041,2547.2,2546.7,1.0519]
[1726842772509,0.39259,2547.1,2546.7,1.0519]
[1726842772710,0.39259,2547.0,2546.7,1.44453]
[1726842772912,1.1041,2547.2,2546.7,1.44453]
[1726842773417,0.3926,2547.0,2546.7,1.44453]
[1726842773712,0.3926,2547.0,2546.7,1.0519]
[1726842773916,0.3926,2547.0,2546.7,1.44454]
[1726842774114,0.39261,2546.9,2546.7,1.0519]
[1726842774312,0.3926,2547.0,2546.7,1.44454]
[1726842774716,4.7864,2547.4,2546.7,1.0519]
[1726842775014,0.39259,2547.1,2546.8,0.39262]
[1726842775212,5.76775,2547.4,2546.9,3.2078]
[1726842775407,0.39256,2547.2,2546.9,3.2078]
[1726842775613,0.39256,2547.2,2546.9,3.6004]
[1726842776116,4.7864,2547.4,2546.9,3.2078]
[1726842776315,0.39257,2547.2,2546.9,3.6004]
[1726842776907,0.39255,2547.3,2547.0,0.39258]
[1726842777113,0.39257,2547.2,2547.0,0.39258]
[1726842777415,3.77,2547.4,2546.9,3.2078]
[1726842777610,0.39259,2547.0,2546.9,3.2078]
[1726842778620,0.39259,2547.0,2546.7,2.47354]
[1726842779416,0.39259,2547.0,2546.7,2.0809]
[1726842779912,0.39259,2547.0,2546.7,2.47354]
[1726842780421,0.98151,2547.0,2546.6,3.2078]
[1726842780625,3.77,2547.1,2546.6,3.60045]
[1726842780931,0.39262,2546.9,2546.6,3.60045]
[1726842781126,2.05399,2547.3,2546.6,3.2078]
[1726842781127,4.16264,2546.7,2546.6,3.2078]
[1726842781326,5.14425,2546.7,2546.6,3.2078]
[1726842781544,0.98165,2546.6,2546.2,4.3057]
[1726842781823,4.16269,2546.4,2546.2,4.3057]
[1726842782019,3.4627,2546.3,2546.2,3.2078]
[1726842782625,7.3899,2546.3,2546.2,3.2078]
[1726842782820,8.37166,2546.3,2546.2,3.2078]
[1726842783323,8.37166,2546.3,2545.6,6.27]
[1726842783324,0.39275,2546.0,2545.6,6.27]
[1726842783525,3.07,2545.7,2545.5,3.2078]
[1726842783734,3.07,2545.7,2545.4,3.2078]
[1726842783735,0.39281,2545.6,2545.4,3.2078]
[1726842784020,0.39283,2545.5,2544.9,5.66191]
[1726842784231,0.39283,2545.5,2544.9,3.2078]
[1726842784232,3.77,2545.3,2544.9,3.2078]
[1726842784417,0.98208,2545.5,2544.9,3.2078]
[1726842784418,3.77,2545.0,2544.9,3.2078]
[1726842785123,8.0925,2545.0,2544.9,3.2078]
[1726842785426,8.0925,2545.0,2544.4,4.2441]
[1726842785428,0.39293,2544.9,2544.4,4.2441]
[1726842785923,4.16291,2545.0,2544.4,4.2441]
[1726842786428,3.77,2545.0,2544.4,4.2441]
[1726842786729,3.77,2545.3,2544.7,3.2078]
[1726842786927,3.77,2545.3,2544.8,0.39293]
[1726842787120,4.16287,2545.3,2545.0,3.2078]
[1726842787320,3.77,2545.3,2544.6,3.2078]
[1726842787524,4.16291,2545.0,2544.6,3.2078]
[1726842787825,1.0955,2545.4,2544.6,3.2078]
[1726842787826,3.77,2544.7,2544.6,3.2078]
[1726842788628,3.77,2545.0,2544.6,3.2078]
[1726842788829,4.16291,2545.0,2544.6,3.2078]
[1726842789333,4.1629,2545.0,2544.6,3.2078]
[1726842789625,0.39288,2545.2,2544.6,3.2078]
[1726842789825,0.3929,2545.1,2544.6,3.2078]
[1726842790027,3.77,2545.3,2544.6,3.2078]
[1726842790220,3.77,2545.0,2544.6,3.2078]
[1726842790417,3.77,2545.0,2544.4,1.0363]
[1726842790418,0.39293,2544.9,2544.4,1.0363]
[1726842790623,3.77,2545.0,2544.4,1.0363]
[1726842791023,4.16291,2545.0,2544.4,1.42929]
[1726842791231,0.39292,2544.9,2544.6,3.2078]
[1726842791431,4.16295,2544.7,2544.6,3.2078]
[1726842791623,0.39299,2544.5,2544.2,3.2078]
[1726842792340,3.77,2544.7,2544.2,3.2078]
[1726842792829,4.16296,2544.7,2544.2,3.2078]
[1726842793126,3.77,2545.0,2544.2,3.2078]
[1726842793329,3.77,2545.0,2544.5,3.2078]
[1726842793533,0.3929,2545.1,2544.8,3.2078]
[1726842793731,2.07313,2545.7,2544.8,3.2078]
[1726842793930,0.98195,2545.9,2545.1,3.2078]
[1726842794122,9.1687,2546.0,2545.4,3.2078]
[1726842794433,0.3928,2545.7,2545.4,3.60063]
[1726842794627,6.94281,2546.0,2545.4,3.2078]
[1726842794833,0.39281,2545.6,2545.4,3.2078]
[1726842795135,0.39283,2545.5,2545.4,3.2078]
[1726842796032,0.39282,2545.6,2545.4,3.2078]
[1726842796238,0.39283,2545.5,2545.4,3.2078]
[1726842796553,2.1909,2546.0,2545.4,3.2078]
[1726842796838,42.76278,2547.3,2545.8,0.39277]
[1726842796839,1.1261,2546.4,2545.8,0.39277]
[1726842797138,3.77,2546.6,2545.2,1.0863]
[1726842797139,3.77,2546.6,2546.0,3.2078]
[1726842797335,3.77,2546.6,2546.2,0.39272]
[1726842797536,4.8225,2546.9,2546.4,0.39268]
[1726842797833,4.8225,2546.9,2546.3,3.2078]
[1726842798039,3.77,2546.6,2546.3,3.2078]
[1726842798229,0.39269,2546.4,2546.3,3.2078]
[1726842798425,0.3927,2546.3,2545.9,3.2078]
[1726842798627,0.39269,2546.4,2545.9,3.2078]
[1726842798932,0.39271,2546.3,2545.9,3.2078]
[1726842799434,3.77,2546.6,2545.9,3.2078]
[1726842799629,0.39271,2546.3,2545.9,3.2078]
[1726842799840,4.16271,2546.3,2545.9,3.2078]
[1726842800039,3.77,2546.3,2545.9,3.2078]
[1726842800539,0.39272,2546.2,2545.9,3.2078]
[1726842801041,0.39274,2546.1,2545.9,3.2078]
[1726842801243,3.77,2546.3,2545.9,3.2078]
[1726842801244,0.39272,2546.2,2545.9,3.2078]
[1726842801537,3.77,2546.3,2545.9,3.2078]
[1726842801538,4.16271,2546.3,2545.9,3.2078]
[1726842801748,0.39272,2546.2,2545.9,3.2078]
[1726842801939,4.16271,2546.3,2545.9,3.2078]
[1726842802437,0.39273,2546.2,2545.9,3.2078]
[1726842802833,0.39273,2546.1,2545.9,3.2078]
[1726842803229,4.16271,2546.3,2545.9,3.2078]
[1726842803429,3.77,2546.3,2545.9,3.2078]
[1726842803634,3.77,2546.3,2545.9,3.60056]
[1726842803937,4.16266,2546.6,2546.0,0.39275]
[1726842804138,0.39267,2546.5,2546.0,0.39275]
[1726842804338,3.77,2546.6,2546.2,3.2078]
[1726842804538,3.77,2546.6,2546.0,1.021]
[1726842804841,0.39267,2546.5,2546.0,1.41374]
[1726842805260,0.39267,2546.5,2546.1,0.39273]
[1726842805640,3.77,2546.6,2546.0,1.021]
[1726842806038,0.39268,2546.5,2546.0,1.41375]
[1726842806241,0.39269,2546.4,2546.0,1.41375]
[1726842806436,3.77,2546.6,2546.0,1.41375]
[1726842806437,0.39268,2546.5,2546.0,1.41375]
[1726842806637,3.77,2546.3,2545.9,3.2078]
[1726842807035,4.7518,2546.3,2545.9,3.2078]
[1726842807349,3.77,2546.3,2545.9,3.2078]
[1726842807641,0.39274,2546.1,2545.9,3.2078]
[1726842808641,3.77,2546.3,2545.9,3.2078]
[1726842808642,0.39275,2546.0,2545.9,3.2078]
[1726842808848,0.39275,2546.0,2545.6,3.2078]
[1726842809339,0.39275,2546.0,2545.6,3.60061]
[1726842809546,0.39274,2546.1,2545.7,0.39279]
[1726842809749,4.75179,2546.3,2545.6,3.6006]
[1726842809938,0.39276,2546.0,2545.6,3.6006]
[1726842810144,0.39277,2545.9,2545.6,3.2078]
[1726842810336,0.9818,2546.2,2545.6,3.2078]
[1726842810540,3.77,2545.9,2545.6,3.60061]
[1726842811246,4.16276,2545.9,2545.6,3.60061]
[1726842811440,3.77,2546.3,2545.7,3.928]
[1726842811639,0.39274,2546.1,2545.9,3.2078]
[1726842811852,4.75179,2546.3,2545.9,3.2078]
[1726842812040,0.39275,2546.0,2545.9,3.2078]
[1726842812242,0.39275,2546.0,2545.7,0.39279]
[1726842813048,0.39275,2546.0,2545.8,3.60057]
[1726842813549,0.39275,2546.0,2545.8,3.2078]
[1726842813747,0.39274,2546.1,2545.8,3.2078]
[1726842814052,0.39275,2546.0,2545.8,3.60057]
[1726842814254,0.39275,2546.0,2545.7,0.39278]
[1726842814842,0.39275,2546.0,2545.5,4.2288]
[1726842815164,0.98181,2546.2,2545.7,0.39279]
[1726842815351,3.77,2546.0,2545.5,4.2288]
[1726842815551,0.3928,2545.7,2545.5,1.021]
[1726842815747,0.39279,2545.8,2545.6,3.2078]
[1726842815944,3.77,2546.3,2545.6,3.2078]
[1726842816148,6.9778,2546.6,2546.0,3.2078]
[1726842816453,0.3927,2546.4,2546.1,0.39273]
[1726842816643,3.77,2546.6,2546.3,3.6005]
[1726842816644,4.16266,2546.6,2546.3,3.6005]
[1726842816844,0.39268,2546.5,2546.3,3.2078]
[1726842817046,3.77,2547.3,2546.4,3.9272]
[1726842817250,0.98128,2547.6,2547.1,3.2078]
[1726842817251,0.39252,2547.5,2547.1,3.2078]
[1726842817457,0.39256,2547.2,2547.1,3.2078]
[1726842817647,3.77,2547.6,2546.8,3.2078]
[1726842817842,0.39257,2547.2,2546.8,3.2078]
[1726842818049,3.77,2547.6,2546.8,3.60042]
[1726842818244,0.39257,2547.2,2546.8,3.60042]
[1726842818458,0.3926,2547.0,2546.8,3.2078]
[1726842818651,3.77,2547.3,2546.8,3.2078]
[1726842819045,3.77,2547.6,2547.1,3.2078]
[1726842819251,1.49739,2547.7,2547.3,0.39255]
[1726842819457,3.77,2547.9,2547.4,3.2078]
[1726842819648,0.39252,2547.5,2547.4,3.2078]
[1726842820049,0.39251,2547.6,2547.4,3.2078]
[1726842820248,0.39251,2547.6,2546.9,2.1803]